Workbook

Sheet MENU

Sheet DescuentoSimple
B2: DESCUENTO SIMPLE
B3: Variable a calcular | C3: Valor a Descuento
B4: Valor Nominal | C4: 1000
B5: Valor a Descuento | M5: =SUM(G5:L5) -> 0
B6: Número de Periodos | C6: 2 | M6: =SUM(G6:L6) -> 0
B7: Tasa de descuento(Interes Periodico) | C7: 0.01 | M7: =SUM(M5:M6) -> 0
B9: Resultado | C9: =IFERROR(VLOOKUP(C3,Hoja2!A51:B54,2,FALSE),"") -> 980 | E9: =+IF(C9<1,C9,"") ->  | M9: =G2-M7 -> 0

Sheet InteresSimple
B2: INTERES SIMPLE
B3: Variable a calcular | C3: Valor Futuro
B4: Número de Periodos | C4: 1
B5: Interes Periodico | C5: 0.0246950766
B6: Valor Presente | C6: 200000000 | M6: =SUM(G6:L6) -> 0
B7: Valor Futuro | C7: =+C9*(1+0.02*18) -> 278717060.8 | M7: =SUM(F7:L7) -> 0
M8: =SUM(M6:M7) -> 0
B9: Resultado | C9: =IFERROR(VLOOKUP(C3,Hoja2!A45:B48,2,FALSE),"") -> 204939015.3 | E9: =+IF(C9<1,C9,"") -> 
M10: =#REF!-M8 -> 

Sheet ConversionTasas
B2: CONVERSION DE TASAS
B3: Tasa a Convertir | C3: 0.03
B4: Tipo de Tasa | C4: Nominal Anticipada
B5: Periodicidad | C5: Mensual
B6: Tasa a calcular | C6: Efectiva Anual
B7: Periodicidad | C7: Trimestral
B9: RESULTADO | C9: =+VLOOKUP(C6,Hoja2!A92:B96,2,FALSE) -> 0.03049324125

Sheet InteresCompuesto
B2: INTERES COMPUESTO | E2: TIPO | F2: VENCIDA
B3: Variable a calcular | C3: Cuota(VF)
B4: Pago
B5: Número de Periodos | C5: 48
B6: Interes Periodico | C6: 0.005089442015
B7: Valor Presente
B8: Valor Futuro | C8: 50000000
B10: Resultado | C10: =IFERROR(VLOOKUP(C3,Hoja2!A26:B37,2,FALSE),"") -> 922241.3638 | E10: =+IF(C10<1,C10,"") -> 

Sheet GradLineal
B2: GRADENTE LINEAL
B3: Variable a calcular | C3: Pago 1 VP
B4: Pago 1
B5: Número de Periodos | C5: 16
B6: Interes Periodico | C6: =+NOMINAL(25%,4)/4 -> 0.05737126344
B7: Gradiente | C7: 100000
B8: Valor Presente | C8: 50000000
B9: Valor Futuro
B11: Resultado | C11: =IFERROR(VLOOKUP(C3,Hoja2!A1:B7,2,FALSE),"") -> 4225671.654

Sheet GradGeometrico
B2: GRADENTE GEOMETRICO
B3: Variable a calcular | C3: Valor Presente i ≠ g
B4: Pago 1 | C4: 300000
B5: Número de Periodos | C5: =8*12 -> 96
B6: Interes Periodico | C6: 0.0205784817
B7: Gradiente | C7: 0.01 | E7: Resultado | F7: =IFERROR(VLOOKUP(C3,Hoja2!A13:B22,2,FALSE),"") -> 17929207.66
B8: Valor Presente i ≠ g
B9: Valor Presente i = g
B10: Valor Futuro i ≠ g
B11: Valor Futuro i = g

Sheet Borrador
A1: VP | B1: 5000000
A2: N | B2: 3 | C2: AÑOS
A3: I | B3: 0.04629467246 | C3: EA
A4: VF | B4: =FV(B3,B2,,-B1) -> 5727064.13
D5: 0.03 | E5: =+D5/12 -> 0.0025
A6: VP | B6: 2000000 | E6: =+E5/(1-E5) -> 0.002506265664
A7: VF | B7: 2721000 | D7: =NPER(E6,,-B6,B7) -> 122.9869213
A8: I | B8: 0.03049324125 | C8: EA
A9: N | B9: =NPER(B8,,-B6,B7) -> 10.24891011 | C9: AÑOS | D9: =+B9*12 -> 122.9869213
A11: VP | B11: 2000000
A12: VF | B12: 2300000
A13: N | B13: 1.25 | C13: AÑOS
A14: I | B14: =RATE(B13,,-B11,B12) -> 0.1182998645 | C14: EA
A16: VP | B16: 2000000
A17: VF | B17: 2300000
A18: N | B18: 15
A19: I | B19: =RATE(B18,,-B16,B17) -> 0.009361005512 | C19: PMV
C20: =B19*12 -> 0.1123320661
C21: =EFFECT(C20,12) -> 0.1182998645
A23: IC | B23: DC
A24: VF | B24: VN
A25: VP | B25: VD
A26: N | B26: N
A27: I | B27: I
A29: VN | B29: 2000000
A30: VD | B30: =+B29-3%*2000000 -> 1940000
A31: N | B31: 0.05277777778
A32: I | B32: =RATE(B31,,-B30,B29) -> 0.780905292 | C32: EA
A34: VN | B34: 5000000
A35: VD | B35: =+B34-4%*B34 -> 4800000
A36: N | B36: 0.09722222222
A37: I | B37: =RATE(B36,,B35,-B34) -> 0.521784063
A39: VN | B39: 1000000
A40: N | B40: 0.03888888889
A41: I | B41: =+(1+7.93%)*(1+5%)-1 -> 0.133265 | D41: 5% Ntv | E41: 5
A42: VD | B42: =PV(B41,B40,,-B39) -> 995146.7048
D43: 10%NTV
D77: =+B61 -> 0
D78: =+B68 -> 0
D79: =+B70 -> 0
D80: =+B75 -> 0

Sheet Hoja2 (hidden)
A1: Pago en Periodo N | B1: =+GradLineal!C4+(GradLineal!C5-1)*GradLineal!C7 -> 1500000
A2: Valor Presente | B2: =+GradLineal!C4*((1+GradLineal!C6)^GradLineal!C5-1)/((1+GradLineal!C6)^GradLineal!C5*GradLineal!C6)+GradLineal!C7/GradLineal!C6*(((1+GradLineal!C6)^GradLineal!C5-1)/((1+GradLineal!C6)^GradLineal!C5*GradLineal!C6)-(GradLineal!C5/((1+GradLineal!C6)^GradLineal!C5))) -> 6514178.091
A3: Valor Futuro | B3: =+GradLineal!C4*(((1+GradLineal!C6)^GradLineal!C5-1)/GradLineal!C6)+GradLineal!C7/GradLineal!C6*((((1+GradLineal!C6)^GradLineal!C5-1)/GradLineal!C6)-GradLineal!C5) -> 15903755.1
A4: Pago 1 VP | B4: =+(GradLineal!C8-(GradLineal!C7/GradLineal!C6*(((1+GradLineal!C6)^GradLineal!C5-1)/((1+GradLineal!C6)^GradLineal!C5*GradLineal!C6)-(GradLineal!C5/((1+GradLineal!C6)^GradLineal!C5)))))/(((1+GradLineal!C6)^GradLineal!C5-1)/((1+GradLineal!C6)^GradLineal!C5*GradLineal!C6)) -> 4225671.654
A5: Pago 1 VF | B5: =+(GradLineal!C9-GradLineal!C7/GradLineal!C6*((((1+GradLineal!C6)^GradLineal!C5-1)/GradLineal!C6)-GradLineal!C5))/(((1+GradLineal!C6)^GradLineal!C5-1)/GradLineal!C6) -> -633005.8051
A6: Anualidad Equivalente | B6: =+GradLineal!C4+GradLineal!C7*((1/GradLineal!C6)-(GradLineal!C5/((1+GradLineal!C6)^GradLineal!C5-1))) -> 633005.8051
A7: Gradiente Perpetuo | B7: =+(GradLineal!C4/GradLineal!C6)+(GradLineal!C7/(GradLineal!C6^2)) -> 30381637.09
A13: Pago en Periodo N | B13: =+GradGeometrico!C4*(1+GradGeometrico!C7)^(GradGeometrico!C5-1) -> 772061.265
A14: Valor Presente i ≠ g | B14: =+GradGeometrico!C4*(((1+GradGeometrico!C6)^GradGeometrico!C5-(1+GradGeometrico!C7)^GradGeometrico!C5)/((GradGeometrico!C6-GradGeometrico!C7)*(1+GradGeometrico!C6)^GradGeometrico!C5)) -> 17929207.66
A15: Valor Presente i = g | B15: =+GradGeometrico!C4*GradGeometrico!C5/(1+GradGeometrico!C6) -> 28219289.86
A16: Valor Futuro i ≠ g | B16: =+GradGeometrico!C4*(((1+GradGeometrico!C7)^GradGeometrico!C5-(1+GradGeometrico!C6)^GradGeometrico!C5)/(GradGeometrico!C7-GradGeometrico!C6)) -> 126711546.9
A17: Valor Futuro i = g | B17: =+GradGeometrico!C4*GradGeometrico!C5*(1+GradGeometrico!C6)^(GradGeometrico!C5-1) -> 199434907.6
A18: Pago 1 V P i ≠ g | B18: =+GradGeometrico!C8/(((1+GradGeometrico!C6)^GradGeometrico!C5-(1+GradGeometrico!C7)^GradGeometrico!C5)/((GradGeometrico!C6-GradGeometrico!C7)*(1+GradGeometrico!C6)^GradGeometrico!C5)) -> 0
A19: Pago 1 V P i = g | B19: =+GradGeometrico!C9/(GradGeometrico!C5/(1+GradGeometrico!C6)) -> 0
A20: Pago 1 V F i ≠ g | B20: =+GradGeometrico!C10/(((1+GradGeometrico!C7)^GradGeometrico!C5-(1+GradGeometrico!C6)^GradGeometrico!C5)/(GradGeometrico!C7-GradGeometrico!C6)) -> 0
A21: Pago 1 V F i = g | B21: =+GradGeometrico!C11/(GradGeometrico!C5*(1+GradGeometrico!C6)^(GradGeometrico!C5-1)) -> 0
A22: Gradiente Perpetuo | B22: =+GradGeometrico!C4/(GradGeometrico!C6-GradGeometrico!C7) -> 28359457.3
A26: Valor Presente(anualidad) | B26: =PV(InteresCompuesto!C6,InteresCompuesto!C5,-InteresCompuesto!C4,,B39) -> 0
A27: Valor Futuro(anualidad) | B27: =FV(InteresCompuesto!C6,InteresCompuesto!C5,-InteresCompuesto!C4,,B39) -> 0
A28: Numero de Periodos(anualidad VP) | B28: =NPER(InteresCompuesto!C6,InteresCompuesto!C4,-InteresCompuesto!C7,,B39) -> 
A29: Numero de Periodos(anualidad VF) | B29: =NPER(InteresCompuesto!C6,-InteresCompuesto!C4,,InteresCompuesto!C8,B39) -> 
A30: Interes Periodico(anualidad VP) | B30: =RATE(InteresCompuesto!C5,-InteresCompuesto!C4,InteresCompuesto!C7,,B39) -> 
A31: Interes Periodico(anualidad VF) | B31: =RATE(InteresCompuesto!C5,-InteresCompuesto!C4,,InteresCompuesto!C8,B39) -> 
A32: Valor Presente | B32: =+PV(InteresCompuesto!C6,InteresCompuesto!C5,,-InteresCompuesto!C8,B39) -> 39187167.97
A33: Valor Futuro | B33: =FV(InteresCompuesto!C6,InteresCompuesto!C5,,-InteresCompuesto!C7,B39) -> 0
A34: Numero de Periodos | B34: =NPER(InteresCompuesto!C6,,-InteresCompuesto!C7,InteresCompuesto!C8,B39) -> 
A35: Interes Periodico | B35: =RATE(InteresCompuesto!C5,,InteresCompuesto!C7,-InteresCompuesto!C8,B39) -> 
A36: Cuota(VP) | B36: =PMT(InteresCompuesto!C6,InteresCompuesto!C5,-InteresCompuesto!C7,,B39) -> 0
A37: Cuota(VF) | B37: =PMT(InteresCompuesto!C6,InteresCompuesto!C5,,-InteresCompuesto!C8,B39) -> 922241.3638
A39: ANUALIDAD | B39: =+IF(InteresCompuesto!F2="VENCIDA",0,1) -> 0
A41: VENCIDA
A42: ANTICIPADA
A45: Numero de Periodos | B45: =+(InteresSimple!C7/InteresSimple!C6-1)/InteresSimple!C5 -> 15.93780455
A46: Interes Periodico | B46: =+(InteresSimple!C7/InteresSimple!C6-1)/InteresSimple!C4 -> 0.3935853042
A47: Valor Presente | B47: =+InteresSimple!C7/(1+InteresSimple!C5*InteresSimple!C4) -> 272000000
A48: Valor Futuro | B48: =+InteresSimple!C6*(1+InteresSimple!C4*InteresSimple!C5) -> 204939015.3
A51: Valor Nominal | B51: =+DescuentoSimple!C5/(1-DescuentoSimple!C6*DescuentoSimple!C7) -> 0
A52: Valor a Descuento | B52: =+DescuentoSimple!C4*(1-DescuentoSimple!C6*DescuentoSimple!C7) -> 980
A53: N | B53: =+(1-DescuentoSimple!C5/DescuentoSimple!C4)/DescuentoSimple!C7 -> 100
A54: Tasa de Descuento | B54: =+(1-DescuentoSimple!C5/DescuentoSimple!C4)/DescuentoSimple!C6 -> 0.5
A57: Nominal Vencida | B57: =+IF(ConversionTasas!C4=A57,ConversionTasas!C3,"") -> 
A58: Efectiva Anual | B58: =IFERROR(EFFECT(B57,VLOOKUP(ConversionTasas!C5,Hoja2!A100:B105,2,FALSE)),0) -> 0
A59: Periodica Vencida | B59: =IFERROR((NOMINAL(B58,VLOOKUP(ConversionTasas!C7,Hoja2!A100:B105,2,FALSE)))/VLOOKUP(ConversionTasas!C7,Hoja2!A100:B105,2,FALSE),0) -> 0
A60: Nominal Anticipada | B60: =+B61*VLOOKUP(ConversionTasas!C7,Hoja2!A100:B105,2,FALSE) -> 0
A61: Periodica Anticipada | B61: =+B59/(1+B59) -> 0
A62: Nominal Vencida | B62: =+B59*VLOOKUP(ConversionTasas!C7,Hoja2!A100:B105,2,FALSE) -> 0
A64: Efectiva Anual | B64: =+IF(A64=ConversionTasas!C4,ConversionTasas!C3,"") -> 
A65: Nominal Vencida | B65: =IFERROR(NOMINAL(B64,VLOOKUP(ConversionTasas!C7,Hoja2!A100:B105,2,FALSE)),0) -> 0
A66: Periodica Vencida | B66: =+B65/VLOOKUP(ConversionTasas!C7,Hoja2!A100:B105,2,FALSE) -> 0
A67: Nominal Anticipada | B67: =+B68*VLOOKUP(ConversionTasas!C7,Hoja2!A100:B105,2,FALSE) -> 0
A68: Periodica Anticipada | B68: =+B66/(1+B66) -> 0
A70: Periodica Vencida | B70: =+IF(A70=ConversionTasas!C4,ConversionTasas!C3,"") -> 
A71: Nominal Vencida | B71: =IFERROR(NOMINAL(B72,VLOOKUP(ConversionTasas!C7,Hoja2!A100:B105,2,FALSE)),0) -> 0
A72: Efectiva Anual | B72: =IFERROR((1+B70)^VLOOKUP(ConversionTasas!C5,Hoja2!A100:B105,2,FALSE)-1,0) -> 0
A73: Nominal Anticipada | B73: =+B74*VLOOKUP(ConversionTasas!C7,Hoja2!A100:B105,2,FALSE) -> 0
A74: Periodica Anticipada | B74: =+(B71/VLOOKUP(ConversionTasas!C7,Hoja2!A100:B105,2,FALSE))/(1+B71/VLOOKUP(ConversionTasas!C7,Hoja2!A100:B105,2,FALSE)) -> 0
A75: Periodica Vencida | B75: =+B71/VLOOKUP(ConversionTasas!C7,Hoja2!A100:B105,2,FALSE) -> 0
A78: Nominal Anticipada | B78: =+IF(A78=ConversionTasas!C4,ConversionTasas!C3,"") -> 0.03
A79: Periodica Vencida | B79: =IFERROR(B80/VLOOKUP(ConversionTasas!C7,Hoja2!A100:B105,2,FALSE),0) -> 0.007537656838
A80: Nominal Vencida | B80: =IFERROR(NOMINAL(B81,VLOOKUP(ConversionTasas!C7,Hoja2!A100:B105,2,FALSE)),0) -> 0.03015062735
A81: Efectiva Anual | B81: =IFERROR((1+(B78/VLOOKUP(ConversionTasas!C5,Hoja2!A100:B105,2,FALSE))/(1-B78/VLOOKUP(ConversionTasas!C5,Hoja2!A100:B105,2,FALSE)))^VLOOKUP(ConversionTasas!C5,Hoja2!A100:B105,2,FALSE)-1,0) -> 0.03049324125
A82: Periodica Anticipada | B82: =+B79/(1+B79) -> 0.007481265625
A83: Nominal Anticipada | B83: =+B82*VLOOKUP(ConversionTasas!C7,Hoja2!A100:B105,2,FALSE) -> 0.0299250625
A85: Periodica Anticipada | B85: =+IF(A85=ConversionTasas!C4,ConversionTasas!C3,"") -> 
A86: Nominal Vencida | B86: =IFERROR(NOMINAL(B87,VLOOKUP(ConversionTasas!C7,Hoja2!A100:B105,2,FALSE)),0) -> 0
A87: Efectiva Anual | B87: =IFERROR((1+B85/(1-B85))^VLOOKUP(ConversionTasas!C5,Hoja2!A100:B105,2,FALSE)-1,0) -> 0
A88: Periodica Vencida | B88: =+B86/VLOOKUP(ConversionTasas!C7,Hoja2!A100:B105,2,FALSE) -> 0
A89: Nominal Anticipada | B89: =+B90*VLOOKUP(ConversionTasas!C7,Hoja2!A100:B105,2,FALSE) -> 0
A90: Periodica Anticipada | B90: =+B88/(1+B88) -> 0
A92: Nominal Vencida | B92: =+MAX(Hoja2!B62,Hoja2!B65,Hoja2!B71,Hoja2!B80,Hoja2!B86) -> 0.03015062735
A93: Efectiva Anual | B93: =+MAX(Hoja2!B58,Hoja2!B64,Hoja2!B72,Hoja2!B81,Hoja2!B87) -> 0.03049324125
A94: Periodica Vencida | B94: =+MAX(Hoja2!B59,Hoja2!B66,Hoja2!B75,Hoja2!B79,Hoja2!B88) -> 0.007537656838
A95: Nominal Anticipada | B95: =+MAX(Hoja2!B60,Hoja2!B67,Hoja2!B73,Hoja2!B83,Hoja2!B89) -> 0.0299250625
A96: Periodica Anticipada | B96: =+MAX(Hoja2!B61,Hoja2!B68,Hoja2!B74,Hoja2!B82,Hoja2!B90) -> 0.007481265625
A100: Diaria | B100: 365
A101: Mensual | B101: 12
A102: Bimestal | B102: 6
A103: Trimestral | B103: 4
A104: Semestral | B104: 2
A105: Anual | B105: 1
